fUST/lending_fUST_20250615
["ID","MTS","AMOUNT","RATE_DAILY","PERIOD"]
[365861876,1749965450643,-460.0,0.00023561,4]
[365861877,1749965450653,-460.0,0.00023561,4]
[365861878,1749965450662,-3923.17,0.00023561,4]
[365861879,1749965450671,-460.0,0.00023561,4]
[365861880,1749965450681,-478.74,0.00023561,4]
[365861881,1749965450690,-660.76,0.00023561,4]
[365861882,1749965450699,-2793.04,0.00023561,4]
[365861883,1749965450709,-899.13,0.00023561,4]
[365861884,1749965450718,-700.57,0.00023561,4]
[365861885,1749965450727,-1994.39,0.00023561,4]
[365861886,1749965450737,-3483.91,0.00023561,4]
[365861887,1749965450747,-1205.3,0.00023561,4]
[365861888,1749965450756,-1481.15,0.00023561,4]
[365861889,1749965450766,-598.0,0.00023561,4]
[365861890,1749965450775,-1506.96,0.00023561,4]
[365861891,1749965450785,-460.0,0.00023561,4]
[365861892,1749965450794,-788.51,0.00023561,4]
[365861893,1749965450804,-460.0,0.00023561,4]
[365861894,1749965450813,-460.0,0.00023561,4]
[365861895,1749965450823,-449.65525983,0.00023561,4]
[365861896,1749965450832,-460.0,0.00023561,4]
[365861897,1749965450842,-460.0,0.00023561,4]
[365861898,1749965450851,-584.31,0.00023561,4]
[365861899,1749965450860,-460.0,0.00023561,4]
[365861900,1749965450869,-460.0,0.00023561,4]
[365861901,1749965450879,-474.67,0.00023561,4]
[365861902,1749965450888,-460.0,0.00023561,4]
[365861903,1749965450897,-481.67,0.00023561,4]
[365861904,1749965450907,-523.01,0.00023561,4]
[365861905,1749965450916,-478.75,0.00023561,4]
[365861906,1749965450926,-151.0,0.00023561,7]
[365861907,1749965450935,-1041.44,0.00023561,4]
[365861908,1749965450944,-549.75596082,0.00023561,4]
[365861909,1749965450954,-460.0,0.00023561,4]
[365861910,1749965450963,-460.0,0.00023561,4]
[365861911,1749965450972,-460.0,0.00023561,4]
[365861912,1749965450982,-460.0,0.00023561,4]
[365861913,1749965450991,-1646.48,0.00023561,4]
[365861914,1749965451000,-710.68,0.00023561,4]
[365861915,1749965451010,-1919.93,0.00023561,4]
[365861916,1749965451019,-2386.94,0.00023561,4]
[365861917,1749965451028,-1492.07,0.00023561,4]
[365861918,1749965451038,-151.0,0.00023561,7]
[365861919,1749965451048,-460.0,0.00023561,4]
[365861920,1749965451057,-460.0,0.00023561,4]
[365861921,1749965451067,-2543.19,0.00023561,4]
[365861922,1749965451076,-460.0,0.00023561,4]
[365861923,1749965451086,-620.25,0.00023561,4]
[365861924,1749965451095,-565.65,0.00023561,4]
[365861925,1749965451104,-460.0,0.00023561,4]
[365861926,1749965451114,-1706.09,0.00023561,4]
[365861927,1749965451123,-460.0,0.00023561,4]
[365861928,1749965451132,-757.01,0.00023578,3]
[365861929,1749965451141,-197.5847232,0.00023585,2]
[365861930,1749965451150,-621.54734664,0.00023596,30]
[365861931,1749965451160,-151.0,0.000236,10]
[365861932,1749965451170,-151.0,0.0002365,7]
[365861933,1749965451179,-151.0,0.0002365,7]
[365861934,1749965451188,-249.469447,0.0002365,7]
[365861935,1749965451197,-500.0,0.0002365,2]
[365861936,1749965451206,-500.0,0.0002365,2]
[365861937,1749965451215,-500.0,0.00023654,2]
[365861938,1749965451225,-338.0,0.00023666,2]
[365861939,1749965451234,-184.30823,0.0002367,7]
[365861940,1749965451243,-757.01,0.00023678,2]
[365861941,1749965451253,-15675.2111816,0.00023687,2]
[365861942,1749965451263,-151.0,0.00023687,7]
[365861943,1749965451272,-151.0,0.00023687,7]
[365861944,1749965451281,-151.0,0.00023687,7]
[365861945,1749965451291,-186.724186,0.00023687,2]
[365861946,1749965451300,-151.0,0.00023687,7]
[365861947,1749965451309,-186.724186,0.00023687,2]
[365861948,1749965451318,-212.407922,0.00023687,7]
[365861949,1749965451327,-212.407922,0.00023687,7]
[365861950,1749965451337,-1693.2998215,0.00023693,9]
[365861951,1749965451346,-151.0,0.000237,8]
[365861952,1749965451355,-5358.1001289,0.000237,2]
[365861953,1749965451364,-500.0,0.00023705,2]
[365861954,1749965451374,-151.0,0.0002371,7]
[365861955,1749965451383,-251.533111,0.0002372,7]
[365861956,1749965451392,-251.533111,0.0002372,7]
[365861957,1749965451402,-151.0,0.0002372,7]
[365861958,1749965451411,-3890.32,0.00023747,2]
[365861959,1749965451421,-1000.0,0.00023753,7]
[365861960,1749965451430,-1000.0,0.00023753,7]
[365861961,1749965451440,-1000.0,0.00023753,7]
[365861962,1749965451449,-1000.0,0.00023753,7]
[365861963,1749965451459,-1000.0,0.00023753,7]
[365861964,1749965451468,-1000.0,0.00023753,7]
[365861965,1749965451477,-1000.0,0.00023753,7]
[365861966,1749965451487,-1000.0,0.00023753,7]
[365861967,1749965451496,-1000.0,0.00023753,7]
[365861968,1749965451505,-1000.0,0.00023753,7]
[365861969,1749965451515,-1000.0,0.00023753,7]
[365861970,1749965451525,-1000.0,0.00023753,7]
[365861971,1749965451534,-1000.0,0.00023753,7]
[365861972,1749965451543,-1000.0,0.00023753,7]
[365861973,1749965451553,-924.60234557,0.00023753,7]
[365861974,1749965451624,-609.92528467,0.00021903,2]
[365861975,1749965451634,-228.43464187,0.00021917,4]
[365861976,1749965451643,-220.46186055,0.00023753,7]
[365861977,1749965451653,-168.0,0.00023757,2]
[365861978,1749965451662,-500.0,0.0002377,2]
[365861979,1749965451671,-150.0,0.00023773,2]
[365861980,1749965451680,-1.16376439,0.00023778,3]
[365861981,1749965451696,-755.84623561,0.00023778,3]
[365861982,1749965451705,-779.64716318,0.0002378,5]
[365861983,1749965451842,-0.06851496,0.0002378,5]
[365861984,1749965451879,-620.19839704,0.00023228,2]
[365861985,1749965451941,-325.92725365,0.00021123,2]
[365861986,1749965452125,-1255.07274635,0.00021123,2]
[365861987,1749965452134,-460.0,0.00021917,4]
[365861988,1749965452143,-247.02874932,0.00022191,4]
[365861989,1749965452154,-353.49622791,0.00022191,4]
[365861990,1749965452164,-845.25843836,0.00022466,2]
[365861991,1749965452173,-343.80160296,0.00023228,2]
[365861992,1749965452191,-1803.18147642,0.0002378,5]
[365861993,1749965455716,-240.76098103,0.00021917,4]
[365861995,1749965466622,-183.66,0.00021815,2]
[365861997,1749965472258,-181.60870613,0.00020719,2]
[365862003,1749965547784,-44.18928971,0.00020719,2]
[365862004,1749965547807,-122.35685119,0.00020964,2]
[365862005,1749965560293,-320.7242476,0.00020964,2]
[365862008,1749965582552,-56.91890121,0.00020964,2]
[365862009,1749965582574,-243.08109879,0.0002179,2]
[365862011,1749965647774,-160.47140234,0.00020205,2]
[365862013,1749965704586,-794.0,0.00019,2]
[365862014,1749965705939,-2.80568257,0.00019,2]
[365862015,1749965705963,-7.52859766,0.00020205,2]
[365862016,1749965705986,-157.74935064,0.0002139,2]
[365862017,1749965706012,-55.06612904,0.00021766,2]
[365862019,1749965723536,-173.0,0.00021813,2]
[365862020,1749965723558,-163.60047137,0.00021813,2]
[365862027,1749966087750,196.602846,0.00013699,2]
[365862028,1749966102943,-196.602846,0.00020187,2]
[365862032,1749966176685,158.0,0.0001989,2]
[365862034,1749966240223,-134.079284,0.0001989,2]
[365862035,1749966241243,-168.0,0.00020677,2]
[365862036,1749966241266,-5.899304,0.00020786,2]
[365862038,1749966273522,-158.754632,0.00020786,2]
[365862039,1749966273547,-3.52165713,0.00020883,2]
[365862042,1749966302454,-285.27418338,0.00020883,2]
[365862043,1749966304566,165.920716,0.00019896,2]
[365862044,1749966311418,-13.550621,0.00019896,2]
[365862045,1749966311443,-158.6767573,0.00020882,2]
[365862046,1749966328425,-178.21868232,0.00020673,2]
[365862047,1749966355856,-226.35468164,0.00020673,2]
[365862048,1749966363067,-295.82490863,0.00020673,2]
[365862049,1749966371669,-160.46656355,0.00020673,2]
[365862051,1749966392746,-112.95129516,0.00020673,2]
[365862052,1749966392770,-100.53731412,0.00020785,2]
[365862054,1749966417304,-69.57869174,0.00020785,2]
[365862055,1749966417326,-156.7759899,0.00020864,2]
[365862056,1749966424699,-183.2082641,0.00020864,2]
[365862057,1749966426135,-354.26292807,0.00020864,2]
[365862058,1749966426157,-20.63301436,0.00020881,2]
[365862059,1749966431082,-275.25319951,0.00020881,2]
[365862060,1749966434073,-4.11378613,0.00020881,2]
[365862061,1749966434094,-201.43557418,0.00020882,2]
[365862062,1749966434742,-3162.13006502,0.00020882,2]
[365862063,1749966437076,-320.16898819,0.00020882,2]
[365862064,1749966437890,-443.96974471,0.00020882,2]
[365862065,1749966438102,-333.76257599,0.00020782,2]
[365862066,1749966438123,-3485.82536338,0.00020882,2]
[365862067,1749966438145,-1200.0,0.00020882,2]
[365862068,1749966438167,-300.0,0.00020882,2]
[365862069,1749966438188,-500.0,0.00020882,2]
[365862070,1749966438209,-242.52167518,0.00020882,2]
[365862071,1749966438231,-500.0,0.00020882,2]
[365862072,1749966438254,-500.0,0.00020882,2]
[365862073,1749966438276,-633.5901121,0.00020882,2]
[365862074,1749966438299,-548.53026378,0.00020882,2]
[365862075,1749966438320,-418.20337432,0.00020882,2]
[365862076,1749966440090,-81.79662568,0.00020882,2]
[365862077,1749966440112,-500.0,0.00020882,2]
[365862078,1749966440134,-468.18059167,0.00020882,2]
[365862079,1749966440158,-258.84002203,0.00020882,2]
[365862080,1749966440180,-500.0,0.00020882,2]
[365862081,1749966440202,-27.70433026,0.00020882,2]
[365862082,1749966440802,-303.1214741,0.00020882,2]
[365862088,1749966503038,1156.02279816,0.00025006,120]
[365862089,1749966505664,-170.11600581,0.00020784,2]
[365862090,1749966507427,-186.61239845,0.00020881,2]
[365862091,1749966512912,-113.38760155,0.00020881,2]
[365862092,1749966512934,-44.77574945,0.00020883,2]
[365862093,1749966523738,-397.17778172,0.00019893,2]
[365862109,1749966545203,-207.57613395,0.00019893,2]
[365862113,1749966564101,-5098.65184035,0.00019893,2]
[365862114,1749966564802,-169.090823,0.00019893,2]
[365862115,1749966567706,174.56230691,0.000189,2]
[365862121,1749966602660,-43.09639688,0.00019893,2]
[365862122,1749966602682,-188.51154575,0.00020883,2]
[365862123,1749966602707,-56.01876526,0.00020883,2]
[365862128,1749966611713,-246.43739752,0.00020882,2]
[365862129,1749966623843,-170.72371087,0.00020876,3]
[365862133,1749966632323,-572.83628913,0.00020876,3]
[365862134,1749966632332,-953.56260248,0.00020882,2]
[365862135,1749966632341,-500.0,0.00020882,2]
[365862136,1749966632350,-502.20325004,0.00020882,2]
[365862137,1749966632360,-500.0,0.00020882,2]
[365862138,1749966632369,-336.6098614,0.00020882,2]
[365862147,1749966632488,-163.3901386,0.00020882,2]
[365862149,1749966632498,-500.0,0.00020882,2]
[365862151,1749966632507,-500.0,0.00020882,2]
[365862153,1749966632516,-500.0,0.00020882,2]
[365862155,1749966632526,-500.0,0.00020882,2]
[365862157,1749966632535,-500.0,0.00020882,2]
[365862159,1749966632544,-500.0,0.00020882,2]
[365862160,1749966632555,-500.0,0.00020882,2]
[365862162,1749966632567,-500.0,0.00020882,2]
[365862164,1749966632577,-500.0,0.00020882,2]
[365862165,1749966632586,-500.0,0.00020882,2]
[365862166,1749966632595,-500.0,0.00020882,2]
[365862167,1749966632606,-500.0,0.00020882,2]
[365862168,1749966632616,-500.0,0.00020882,2]
[365862169,1749966632625,-500.0,0.00020882,2]
[365862171,1749966632635,-500.0,0.00020882,2]
[365862172,1749966632644,-500.0,0.00020882,2]
[365862174,1749966632653,-370.08338334,0.00020882,2]
[365862176,1749966632663,-228.14077828,0.00020882,2]
[365862178,1749966632672,-500.0,0.00020882,2]
[365862180,1749966632681,-500.0,0.00020882,2]
[365862182,1749966632690,-500.0,0.00020882,2]
[365862184,1749966632700,-500.0,0.00020882,2]
[365862186,1749966632709,-500.0,0.00020882,2]
[365862187,1749966632718,-387.22548503,0.00020882,2]
[365862188,1749966632727,-500.0,0.00020882,2]
[365862189,1749966632737,-500.0,0.00020882,2]
[365862190,1749966632747,-500.0,0.00020882,2]
[365862191,1749966632757,-299.96167326,0.00020882,2]
[365862192,1749966632766,-1104.43160068,0.00020883,2]
[365862193,1749966632776,-1160.45036594,0.00020883,2]
[365862194,1749966632785,-1160.45036594,0.00020883,2]
[365862195,1749966632795,-1160.45036594,0.00020883,2]
[365862196,1749966632804,-1160.45036594,0.00020883,2]
[365862197,1749966632813,-1160.45036594,0.00020883,2]
[365862198,1749966632823,-1160.45036594,0.00020883,2]
[365862199,1749966632832,-1160.45036594,0.00020883,2]
[365862200,1749966632842,-1160.45036594,0.00020883,2]
[365862201,1749966632852,-1160.45036594,0.00020883,2]
[365862202,1749966632861,-1160.45036594,0.00020883,2]
[365862203,1749966632871,-1160.45036594,0.00020883,2]
[365862204,1749966632881,-1160.45036594,0.00020883,2]
[365862205,1749966632890,-1160.45036594,0.00020883,2]
[365862206,1749966632900,-1160.45036594,0.00020883,2]
[365862207,1749966632909,-1160.45036594,0.00020883,2]
[365862208,1749966632919,-1160.45036594,0.00020883,2]
[365862209,1749966632928,-1160.45036594,0.00020883,2]
[365862210,1749966632938,-1160.45036595,0.00020883,2]
[365862211,1749966632947,-1160.45036595,0.00020883,2]
[365862212,1749966632957,-1160.45036595,0.00020883,2]
[365862213,1749966632966,-1160.45036595,0.00020883,2]
[365862214,1749966632975,-1160.45036595,0.00020883,2]
[365862215,1749966632984,-1160.45036595,0.00020883,2]
[365862216,1749966632994,-1160.45036595,0.00020883,2]
[365862217,1749966633003,-1160.45036595,0.00020883,2]
[365862218,1749966633012,-1508.58547572,0.00020883,2]
[365862219,1749966633021,-1508.58547572,0.00020883,2]
[365862220,1749966633031,-1508.58547572,0.00020883,2]
[365862221,1749966633041,-6562.76563845,0.00020884,7]
[365862222,1749966633063,-375.05712218,0.00020884,7]
[365862223,1749966633075,-1158.24448269,0.00020884,7]
[365862224,1749966636819,-180.509078,0.00020056,2]
[365862225,1749966636843,-70.71605246,0.00020884,7]
[365862242,1749966638305,-1504.2,0.00020884,7]
[365862265,1749966638517,-40329.01670422,0.00020884,7]
[365862267,1749966638527,-845.25843836,0.00020884,7]
[365862269,1749966638539,-209.454,0.00020886,2]
[365862271,1749966638549,-50000.0,0.00020886,10]
[365862273,1749966638568,-315.37997948,0.00020886,10]
[365862275,1749966638588,-13457.78326,0.00020887,2]
[365862277,1749966638598,-841.46,0.000209,2]
[365862279,1749966638607,-666.0,0.00020913,2]
[365862281,1749966638617,-27326.79507991,0.00020913,10]
[365862282,1749966638627,-500.0,0.00020964,2]
[365862283,1749966638636,-2028.42,0.00021,2]
[365862284,1749966638645,-882.84688406,0.00021399,2]
[365862285,1749966638655,-694.24718203,0.00021573,2]
[365862286,1749966638664,-502.6969176,0.00021591,2]
[365862287,1749966638674,-1980.13,0.00021787,2]
[365862288,1749966638683,-1000.0,0.00021816,2]
[365862289,1749966638692,-4225.1462754,0.00021817,2]
[365862290,1749966638701,-1000.0,0.00021915,2]
[365862291,1749966638711,-500.0,0.00021916,2]
[365862292,1749966638720,-160.0,0.00021916,2]
[365862293,1749966638729,-151.0,0.00021917,2]
[365862294,1749966638738,-460.0,0.00021917,4]
[365862295,1749966638748,-430.0,0.00021917,4]
[365862296,1749966638757,-430.0,0.00021917,4]
[365862297,1749966638767,-440.38884369,0.00021917,4]
[365862298,1749966638776,-425.7994646,0.00021917,4]
[365862299,1749966638786,-151.0,0.00021917,2]
[365862300,1749966638795,-460.0,0.00021917,4]
[365862301,1749966638806,-460.0,0.00021917,4]
[365862302,1749966638815,-360.0,0.00021917,4]
[365862303,1749966638824,-460.0,0.00021917,4]
[365862304,1749966638832,-350.0,0.00021917,4]
[365862306,1749966638842,-151.0,0.00021917,2]
[365862308,1749966638852,-460.0,0.00021917,4]
[365862310,1749966638862,-317.12244758,0.00021917,4]
[365862312,1749966638871,-460.0,0.00021917,4]
[365862314,1749966638881,-485.90855456,0.00021917,4]
[365862316,1749966638890,-430.0,0.00021917,4]
[365862318,1749966638899,-461.19189548,0.00021917,4]
[365862320,1749966638909,-460.0,0.00021917,4]
[365862322,1749966638918,-460.0,0.00021917,4]
[365862324,1749966638927,-508.45,0.00021917,4]
[365862326,1749966638937,-460.0,0.00021917,4]
[365862328,1749966638946,-460.0,0.00021917,4]
[365862330,1749966638956,-460.0,0.00021917,4]
[365862332,1749966638965,-721.41,0.00021917,4]
[365862334,1749966638975,-296.97087463,0.00021917,4]
[365862336,1749966638984,-460.0,0.00021917,4]
[365862338,1749966638993,-460.0,0.00021917,4]
[365862340,1749966639002,-460.0,0.00021917,4]
[365862342,1749966639012,-460.0,0.00021917,4]
[365862344,1749966639021,-460.0,0.00021917,4]
[365862346,1749966639030,-460.0,0.00021917,4]
[365862348,1749966639040,-585.05,0.00021917,4]
[365862349,1749966639050,-460.0,0.00021917,4]
[365862351,1749966639060,-460.0,0.00021917,4]
[365862353,1749966639069,-430.0,0.00021917,4]
[365862355,1749966639079,-321.05730704,0.00021917,4]
[365862371,1749966639225,-460.0,0.00021917,4]
[365862373,1749966639244,-460.0,0.00021917,4]
[365862376,1749966639256,-460.0,0.00021917,4]
[365862378,1749966639265,-460.0,0.00021917,4]
[365862379,1749966639275,-460.0,0.00021917,4]
[365862382,1749966639285,-523.96631273,0.00021917,4]
[365862384,1749966639295,-575.717177,0.00021917,4]
[365862386,1749966639304,-460.0,0.00021917,4]
[365862388,1749966639314,-460.0,0.00021917,2]
[365862389,1749966639324,-460.0,0.00021917,4]
[365862391,1749966639334,-460.0,0.00021917,4]
[365862393,1749966639344,-460.0,0.00021917,4]
[365862395,1749966639353,-460.0,0.00021917,4]
[365862397,1749966639363,-460.0,0.00021917,4]
[365862399,1749966639372,-460.0,0.00021917,4]
[365862401,1749966639382,-460.0,0.00021917,4]
[365862404,1749966639392,-460.0,0.00021917,4]
[365862406,1749966639402,-577.78303337,0.00021917,4]
[365862407,1749966639411,-460.0,0.00021917,4]
[365862409,1749966639421,-430.0,0.00021917,4]
[365862411,1749966639431,-430.0,0.00021917,4]
[365862413,1749966639441,-400.0,0.00021917,4]
[365862415,1749966639451,-346.84568077,0.00021917,4]
[365862417,1749966639460,-460.0,0.00021917,4]
[365862419,1749966639470,-420.0,0.00021917,4]
[365862422,1749966639480,-407.20369641,0.00021917,4]
[365862424,1749966639490,-557.74196008,0.00021917,4]
[365862425,1749966639500,-430.0,0.00021917,4]
[365862427,1749966639509,-460.0,0.00021917,4]
[365862429,1749966639518,-249.17,0.00021917,4]
[365862431,1749966639527,-400.0,0.00021917,4]
[365862433,1749966639536,-432.85413838,0.00021917,4]
[365862435,1749966639546,-460.0,0.00021917,4]
[365862437,1749966639557,-400.0,0.00021917,4]
[365862439,1749966639571,-390.0,0.00021917,4]
[365862441,1749966639580,-460.0,0.00021917,4]
[365862443,1749966639590,-236.57699151,0.00021917,4]
[365862445,1749966639600,-283.29996522,0.00021917,4]
[365862447,1749966639609,-460.0,0.00021917,4]
[365862449,1749966639619,-419.23010314,0.00021917,4]
[365862451,1749966639628,-460.0,0.00021917,4]
[365862453,1749966639638,-460.0,0.00021917,4]
[365862455,1749966639649,-430.0,0.00021917,4]
[365862458,1749966639658,-460.0,0.00021917,4]
[365862459,1749966639667,-370.0,0.00021917,4]
[365862461,1749966639677,-2760.11,0.00021917,4]
[365862464,1749966639687,-460.0,0.00021917,4]
[365862465,1749966639696,-380.0,0.00021917,4]
[365862467,1749966639706,-460.0,0.00021917,4]
[365862469,1749966639715,-532.05979569,0.00021917,4]
[365862471,1749966639725,-460.0,0.00021917,4]
[365862473,1749966639735,-3303.82,0.00021917,4]
[365862475,1749966639745,-400.87106725,0.00021917,4]
[365862477,1749966639755,-460.0,0.00021917,4]
[365862479,1749966639764,-460.0,0.00021917,4]
[365862482,1749966639774,-396.77734418,0.00021917,4]
[365862484,1749966639784,-460.0,0.00021917,4]
[365862485,1749966639794,-635.23,0.00021917,4]
[365862488,1749966639803,-3015.46,0.00021917,4]
[365862489,1749966639813,-460.0,0.00021917,4]
[365862491,1749966639822,-541.10900193,0.00021917,4]
[365862493,1749966639832,-460.0,0.00021917,4]
[365862495,1749966639842,-913.79,0.00021917,4]
[365862497,1749966639851,-460.0,0.00021917,4]
[365862499,1749966639860,-3798.34,0.00021917,4]
[365862501,1749966639869,-460.0,0.00021917,4]
[365862503,1749966639879,-460.0,0.00021917,4]
[365862505,1749966639888,-460.0,0.00021917,4]
[365862507,1749966639898,-1209.64,0.00021917,4]
[365862509,1749966639907,-320.0,0.00021917,4]
[365862511,1749966639917,-542.42,0.00021917,4]
[365862513,1749966639926,-335.74641294,0.00021917,4]
[365862515,1749966639935,-460.0,0.00021917,4]
[365862518,1749966639944,-460.0,0.00021917,4]
[365862520,1749966639953,-460.0,0.00021917,4]
[365862522,1749966639962,-262.49924613,0.00021917,4]
[365862524,1749966639971,-462.02330637,0.00021917,4]
[365862526,1749966639981,-1388.45,0.00021917,4]
[365862528,1749966639990,-420.0,0.00021917,4]
[365862530,1749966639999,-153.07892128,0.00021917,4]
[365862532,1749966640009,-460.0,0.00021917,4]
[365862534,1749966640018,-460.0,0.00021917,4]
[365862536,1749966640027,-460.0,0.00021917,4]
[365862538,1749966640036,-460.0,0.00021917,4]
[365862540,1749966640045,-460.0,0.00021917,4]
[365862542,1749966640054,-460.0,0.00021917,4]
[365862544,1749966640064,-557.09,0.00021917,4]
[365862545,1749966640073,-283.61316749,0.00021917,4]
[365862547,1749966640083,-460.0,0.00021917,4]
[365862549,1749966640092,-460.0,0.00021917,4]
[365862551,1749966640101,-364.85902584,0.00021917,4]
[365862554,1749966640111,-258.5202815,0.00021917,4]
[365862556,1749966640120,-460.0,0.00021917,4]
[365862557,1749966640130,-460.0,0.00021917,4]
[365862559,1749966640139,-188.9505723,0.00021917,4]
[365862561,1749966640149,-474.06,0.00021917,4]
[365862563,1749966640158,-1556.61,0.00021917,4]
[365862565,1749966640167,-808.75,0.00021917,4]
[365862567,1749966640177,-460.0,0.00021917,4]
[365862569,1749966640186,-460.0,0.00021917,4]
[365862571,1749966640196,-460.0,0.00021917,4]
[365862573,1749966640206,-460.0,0.00021917,4]
[365862575,1749966640215,-1617.38,0.00021917,4]
[365862577,1749966640224,-400.70451454,0.00021917,4]
[365862579,1749966640234,-460.0,0.00021917,4]
[365862581,1749966640243,-376.62038587,0.00021917,4]
[365862583,1749966640252,-479.61,0.00021917,4]
[365862585,1749966640262,-460.0,0.00021917,4]
[365862587,1749966640271,-460.0,0.00021917,4]
[365862589,1749966640281,-460.0,0.00021917,4]
[365862591,1749966640290,-387.46595788,0.00021917,4]
[365862593,1749966640299,-460.0,0.00021917,4]
[365862595,1749966640309,-460.0,0.00021917,4]
[365862597,1749966640318,-460.0,0.00021917,4]
[365862599,1749966640327,-496.38,0.00021917,4]
[365862601,1749966640336,-460.0,0.00021917,4]
[365862603,1749966640345,-519.43,0.00021917,4]
[365862605,1749966640354,-460.0,0.00021917,4]
[365862607,1749966640363,-460.0,0.00021917,4]
[365862609,1749966640373,-478.5,0.00021917,4]
[365862611,1749966640382,-460.0,0.00021917,4]
[365862613,1749966640391,-467.46,0.00021917,4]
[365862615,1749966640400,-460.0,0.00021917,4]
[365862617,1749966640409,-382.55137291,0.00021917,4]
[365862619,1749966640419,-460.0,0.00021917,4]
[365862621,1749966640428,-460.0,0.00021917,4]
[365862623,1749966640437,-1017.17,0.00021917,4]
[365862625,1749966640446,-717.18,0.00021917,4]
[365862627,1749966640455,-338.65314575,0.00021917,4]
[365862629,1749966640465,-460.0,0.00021917,4]
[365862631,1749966640474,-460.0,0.00021917,4]
[365862633,1749966640483,-460.0,0.00021917,4]
[365862635,1749966640492,-460.0,0.00021917,4]
[365862637,1749966640502,-460.0,0.00021917,4]
[365862639,1749966640511,-400.0,0.00021917,4]
[365862641,1749966640520,-460.0,0.00021917,4]
[365862643,1749966640530,-304.56996525,0.00021917,4]
[365862645,1749966640539,-330.72149073,0.00021917,4]
[365862647,1749966640548,-460.0,0.00021917,4]
[365862649,1749966640559,-460.0,0.00021917,4]
[365862651,1749966640570,-460.0,0.00021917,4]
[365862653,1749966640579,-460.0,0.00021917,4]
[365862655,1749966640588,-1630.08,0.00021917,4]
[365862657,1749966640597,-836.38078461,0.00021917,4]
[365862659,1749966640609,-460.0,0.00021917,4]
[365862661,1749966640618,-460.0,0.00021917,4]
[365862663,1749966640627,-460.0,0.00021917,4]
[365862665,1749966640638,-460.0,0.00021917,4]
[365862667,1749966640647,-460.0,0.00021917,4]
[365862669,1749966640656,-2417.17,0.00021917,4]
[365862671,1749966640665,-460.0,0.00021917,4]
[365862672,1749966640674,-460.0,0.00021917,4]
[365862674,1749966640684,-1935.74,0.00021917,4]
[365862676,1749966640693,-648.65,0.00021917,4]
[365862678,1749966640703,-460.0,0.00021917,4]
[365862680,1749966640713,-438.99273223,0.00021917,4]
[365862682,1749966640722,-579.74468648,0.00021917,4]
[365862684,1749966640731,-460.0,0.00021917,4]
[365862686,1749966640739,-484.04,0.00021917,4]
[365862688,1749966640749,-460.0,0.00021917,4]
[365862690,1749966640758,-440.0,0.00021917,4]
[365862692,1749966640767,-1584.24,0.00021917,4]
[365862694,1749966640776,-460.0,0.00021917,4]
[365862696,1749966640785,-400.0,0.00021917,4]
[365862698,1749966640794,-460.0,0.00021917,4]
[365862700,1749966640803,-460.0,0.00021917,4]
[365862702,1749966640814,-460.0,0.00021917,4]
[365862704,1749966640823,-522.07542312,0.00021917,4]
[365862706,1749966640832,-460.0,0.00021917,4]
[365862708,1749966640841,-394.17581899,0.00021917,4]
[365862710,1749966640850,-460.0,0.00021917,4]
[365862712,1749966640859,-528.94963482,0.00021917,4]
[365862714,1749966640869,-370.0,0.00021917,4]
[365862716,1749966640878,-460.0,0.00021917,4]
[365862718,1749966640887,-380.0,0.00021917,4]
[365862720,1749966640896,-234.7704918,0.00021917,4]
[365862722,1749966640906,-460.0,0.00021917,4]